bitfinex-derivatives/quotes_BNBF0:USTF0_20250810
["timestamp","ask_amount","ask_price","bid_price","bid_amount"]
[1754860602671,0.21708686,802.55,802.0,1.6747942]
[1754860602875,0.21708686,802.55,801.98,1.6747942]
[1754860603175,0.21708686,802.55,801.99,1.6747942]
[1754860604179,0.21708686,802.55,802.0,1.6747942]
[1754860604778,0.21708686,802.55,801.35,2.8023031]
[1754860604779,0.21708686,802.55,801.98,1.6747942]
[1754860604975,0.21708686,802.55,802.01,1.6747942]
[1754860605275,0.21708686,802.55,801.91,1.6747942]
[1754860606277,0.21708686,802.55,801.93,1.6747942]
[1754860606682,0.21708686,802.55,801.92,1.6747942]
[1754860606983,0.21708686,802.55,801.91,1.6747942]
[1754860607281,0.21708686,802.55,801.89,1.6747942]
[1754860607479,0.21708686,802.55,801.92,1.6747942]
[1754860607980,0.21708686,802.55,801.13,2.8023031]
[1754860607981,0.21708686,802.55,801.9,1.6747942]
[1754860609683,0.21708686,802.55,801.91,1.6747942]
[1754860612186,0.21708686,802.55,801.92,1.6747942]
[1754860613287,0.21708686,802.55,801.94,1.6747942]
[1754860614187,0.21708686,802.55,801.95,1.6747942]
[1754860615089,0.21708686,802.55,802.04,1.6747942]
[1754860615288,0.21708686,802.55,802.05,1.6747942]
[1754860615489,0.21708686,802.55,802.03,1.6747942]
[1754860616486,0.21708686,802.55,802.05,1.6747942]
[1754860616991,0.21708686,802.55,802.06,1.6747942]
[1754860617795,0.21708686,802.55,802.1,1.6747942]
[1754860618199,0.21708686,802.55,802.11,1.6747942]
[1754860620397,0.21708686,802.55,802.12,1.6747942]
[1754860620598,0.21708686,802.55,801.85,1.6747942]
[1754860620894,0.21708686,802.55,801.91,1.6747942]
[1754860621197,0.83588005,803.29,801.91,1.6747942]
[1754860621393,1.6680427,803.77,800.48,3.9232243]
[1754860621394,0.77338662,803.28,801.96,1.6747942]
[1754860621597,0.77338662,803.27,801.97,1.6747942]
[1754860621897,0.77338662,803.26,801.99,1.6747942]
[1754860622092,0.77338662,803.25,801.99,1.6747942]
[1754860622297,0.77338662,803.24,802.01,1.6747942]
[1754860622592,0.77338662,803.23,802.01,1.6747942]
[1754860622797,0.77338662,803.22,802.01,1.6747942]
[1754860623096,0.77338662,803.21,802.3,1.6747942]
[1754860623294,0.77338662,803.2,802.28,1.6747942]
[1754860623498,0.77338662,803.19,802.28,1.6747942]
[1754860623695,0.77338662,803.18,802.28,1.6747942]
[1754860623893,0.77338662,803.17,802.28,1.6747942]
[1754860624092,0.77338662,803.16,802.28,1.6747942]
[1754860624297,0.77338662,803.15,802.27,1.6747942]
[1754860624596,0.77338662,803.14,802.27,1.6747942]
[1754860624797,0.77338662,803.13,802.27,1.6747942]
[1754860624999,0.77338662,803.12,802.27,1.6747942]
[1754860625295,0.77338662,803.11,802.27,1.6747942]
[1754860625495,0.83588005,803.33,802.27,1.6747942]
[1754860625496,0.77338662,803.1,802.27,1.6747942]
[1754860625694,0.83588005,803.33,802.27,1.6747942]
[1754860625695,0.77338662,803.09,802.27,1.6747942]
[1754860625898,0.77338662,803.08,802.26,1.6747942]
[1754860626100,0.77338662,803.07,802.26,1.6747942]
[1754860626399,0.21698804,802.88,802.15,1.6747942]
[1754860626693,0.21698804,802.88,802.16,1.6747942]
[1754860628202,0.21698804,802.88,802.15,1.6747942]
[1754860628797,0.21698804,802.88,801.05,3.9232243]
[1754860628798,0.21698804,802.88,802.14,1.6747942]
[1754860629298,0.21698804,802.88,802.13,1.6747942]
[1754860629598,0.21698804,802.88,802.14,1.6747942]
[1754860630000,0.21698804,802.88,802.13,1.6747942]
[1754860632101,0.21698804,802.88,802.14,1.6747942]
[1754860632805,0.21698804,802.88,802.19,1.6747942]
[1754860633405,0.77300007,802.87,802.06,1.6747942]
[1754860633607,0.77300007,802.86,802.06,1.6747942]
[1754860633808,0.21698804,802.88,802.06,1.6747942]
[1754860634008,0.77303408,802.87,802.06,1.6747942]
[1754860634211,0.21698804,802.88,802.07,1.6747942]
[1754860634405,0.77302362,802.87,802.07,1.6747942]
[1754860634607,0.21698804,802.88,802.07,1.6747942]
[1754860634807,0.77305889,802.87,802.07,1.6747942]
[1754860635009,0.21698804,802.88,802.07,1.6747942]
[1754860635210,0.77305889,802.87,802.07,1.6747942]
[1754860635509,0.21698804,802.88,802.08,1.6747942]
[1754860635709,0.21698804,802.88,802.09,1.6747942]
[1754860636211,0.21698804,802.88,802.19,1.6747942]
[1754860639914,0.21698804,802.88,802.21,1.6747942]
[1754860641411,0.21698804,802.88,802.22,1.6747942]
[1754860641712,0.21698804,802.88,802.11,1.6747942]
[1754860642018,0.21698804,802.88,802.15,1.6747942]
[1754860642315,0.21698804,802.88,802.16,1.6747942]
[1754860642516,0.21698804,802.88,802.21,1.6747942]
[1754860642917,0.21698804,802.88,802.24,1.6747942]
[1754860643116,0.21698804,802.88,801.53,2.8023031]
[1754860643117,0.21698804,802.88,802.3,1.6747942]
[1754860643317,0.21698804,802.88,802.4,1.6747942]
[1754860644214,0.21698804,802.88,802.39,1.6747942]
[1754860646221,0.21698804,802.88,802.38,1.6747942]
[1754860647221,0.21698804,802.88,802.37,1.6747942]
[1754860649226,0.21698804,802.88,802.38,1.6747942]
[1754860650222,0.21698804,802.88,802.37,1.6747942]
[1754860651119,0.21698804,802.88,802.38,1.6747942]
[1754860651623,0.21698804,802.88,802.36,1.6747942]
[1754860652825,0.21698804,802.88,802.43,1.6747942]
[1754860655828,0.21698804,802.88,802.42,1.6747942]
[1754860656529,0.21698804,802.88,802.41,1.6747942]
[1754860658430,0.21698804,802.88,802.4,1.6747942]
[1754860660333,0.21698804,802.88,802.39,1.6747942]
[1754860660840,0.21698804,802.88,802.4,1.6747942]
[1754860661140,0.21698804,802.88,802.42,1.6747942]
[1754860661334,0.21698804,802.88,802.41,1.6747942]
[1754860662336,0.21698804,802.88,802.42,1.6747942]
[1754860662639,0.21698804,802.88,802.41,1.6747942]
[1754860663337,0.21698804,802.88,802.42,1.6747942]
[1754860666942,0.21698804,802.88,802.39,1.6747942]
[1754860667140,0.21698804,802.88,801.82,2.8023031]
[1754860667141,0.21698804,802.88,802.4,1.6747942]
[1754860667542,0.21698804,802.88,802.39,1.6747942]
[1754860668144,0.21698804,802.88,802.38,1.6747942]
[1754860668444,0.21698804,802.88,802.39,1.6747942]
[1754860669744,0.21698804,802.88,802.4,1.6747942]
[1754860670045,0.21698804,802.88,802.38,1.6747942]
[1754860670343,0.21698804,802.88,802.39,1.6747942]
[1754860672343,0.21698804,802.88,802.38,1.6747942]
[1754860672746,0.21698804,802.88,802.4,1.6747942]
[1754860673248,0.21698804,802.88,802.31,1.6747942]
[1754860673445,0.21698804,802.88,802.32,1.6747942]
[1754860674546,0.21698804,802.88,802.33,1.6747942]
[1754860675145,0.21698804,802.88,802.32,1.6747942]
[1754860675445,0.21698804,802.88,802.33,1.6747942]
[1754860676350,0.21698804,802.88,802.34,1.6747942]
[1754860676549,0.21698804,802.88,802.33,1.6747942]
[1754860676850,0.21698804,802.88,802.36,1.6747942]
[1754860677247,0.21698804,802.88,802.33,1.6747942]
[1754860677852,0.21698804,802.88,802.31,1.6747942]
[1754860678253,0.21698804,802.88,802.27,1.6747942]
[1754860678453,0.21698804,802.88,802.24,1.6747942]
[1754860679557,0.21698804,802.88,801.57,2.8023031]
[1754860679558,0.21698804,802.88,802.25,1.6747942]
[1754860680052,0.21698804,802.88,802.26,1.6747942]
[1754860681156,0.21698804,802.88,802.27,1.6747942]
[1754860682257,0.21698804,802.88,802.31,1.6747942]
[1754860682955,0.21698804,802.88,802.25,1.6747942]
[1754860683559,0.21698804,802.88,802.38,1.6747942]
[1754860683855,0.21698804,802.88,802.39,1.6747942]
[1754860684658,0.21698804,802.88,802.47,1.6747942]
[1754860686555,0.21698804,802.88,802.52,1.6747942]
[1754860686759,0.21698804,802.88,802.51,1.6747942]
[1754860687559,0.21698804,802.88,802.53,1.6747942]
[1754860688661,0.21698804,802.88,802.54,1.6747942]
[1754860691258,0.21698804,802.88,802.55,1.6747942]
[1754860691662,0.21698804,802.88,802.53,1.6747942]
[1754860692159,0.21698804,802.88,802.54,1.6747942]
[1754860692960,0.21698804,802.88,802.63,1.6747942]
[1754860693159,0.21698804,802.88,802.64,1.6747942]
[1754860693359,0.21698804,802.88,802.63,1.6747942]
[1754860693561,0.21698804,802.88,802.62,1.6747942]
[1754860693762,0.21698804,802.88,802.61,1.6747942]
[1754860694261,0.21698804,802.88,802.62,1.6747942]
[1754860694761,0.21698804,802.88,802.59,1.6747942]
[1754860694965,0.21698804,802.88,802.49,1.6747942]
[1754860695665,0.21698804,802.88,802.48,1.6747942]
[1754860696268,0.21698804,802.88,802.49,1.6747942]
[1754860696562,0.21698804,802.88,802.48,1.6747942]
[1754860696768,0.21698804,802.88,802.49,1.6747942]
[1754860697365,0.21698804,802.88,802.5,1.6747942]
[1754860698566,0.21698804,802.88,802.51,1.6747942]
[1754860698768,0.21698804,802.88,802.5,1.6747942]
[1754860699267,0.21698804,802.88,802.51,1.6747942]
[1754860699569,0.21698804,802.88,802.52,1.6747942]
[1754860699768,0.21698804,802.88,802.51,1.6747942]
[1754860700065,0.21698804,802.88,802.49,1.6747942]
[1754860700264,0.21698804,802.88,802.48,1.6747942]
[1754860700468,0.21698804,802.88,802.43,1.6747942]
[1754860701369,0.21698804,802.88,802.44,1.6747942]
[1754860702273,0.21698804,802.88,802.45,1.6747942]
[1754860702573,0.21698804,802.88,802.3,1.6747942]
[1754860702969,0.21698804,802.88,802.28,1.6747942]
[1754860703373,0.21698804,802.88,802.27,1.6747942]
[1754860705972,0.21698804,802.88,802.25,1.6747942]
[1754860706670,0.21698804,802.88,802.23,1.6747942]
[1754860707371,0.21698804,802.88,802.22,1.6747942]
[1754860708472,0.21698804,802.88,802.16,1.6747942]
[1754860708772,0.21698804,802.88,802.03,1.6747942]
[1754860708773,0.7727516,802.87,802.03,1.6747942]
[1754860708976,0.7727516,802.86,802.03,1.6747942]
[1754860709277,0.21698804,802.88,802.03,1.6747942]
[1754860709576,0.77271831,802.87,801.96,1.6747942]
[1754860709872,0.77271831,802.86,802.12,1.6747942]
[1754860710072,0.77271831,802.85,802.12,1.6747942]
[1754860710277,0.77271831,802.84,802.12,1.6747942]
[1754860710474,0.77271831,802.83,802.1,1.6747942]
[1754860710674,0.21698804,802.88,802.1,1.6747942]
[1754860710878,0.77194057,802.87,802.11,1.6747942]
[1754860711174,0.77194057,802.86,802.15,1.6747942]
[1754860711374,0.21698804,802.88,802.13,1.6747942]
[1754860711573,0.77161926,802.87,802.13,1.6747942]
[1754860711773,0.77161926,802.86,802.13,1.6747942]
[1754860712074,0.21698804,802.88,802.14,1.6747942]
[1754860712377,0.7715938,802.87,802.14,1.6747942]
[1754860712579,0.21698804,802.88,802.12,1.6747942]
[1754860712778,0.77133891,802.87,802.12,1.6747942]
[1754860713073,0.21698804,802.88,802.12,1.6747942]
[1754860713278,0.21698804,802.88,802.14,1.6747942]
[1754860713574,0.21698804,802.88,802.13,1.6747942]
[1754860714377,0.21698804,802.88,802.11,1.6747942]
[1754860715173,0.21698804,802.88,802.1,1.6747942]
[1754860715577,0.21698804,802.88,802.09,1.6747942]
[1754860716276,0.21698804,802.88,802.08,1.6747942]
[1754860717479,0.21698804,802.88,802.07,1.6747942]
[1754860718282,0.21698804,802.88,802.06,1.6747942]
[1754860718480,0.21698804,802.88,802.05,1.6747942]
[1754860719385,0.21698804,802.88,802.04,1.6747942]
[1754860719885,0.21698804,802.88,802.06,1.6747942]
[1754860720381,0.21698804,802.88,802.05,1.6747942]
[1754860721887,0.21698804,802.88,802.11,1.6747942]
[1754860722186,0.21698804,802.88,802.1,1.6747942]
[1754860722481,0.21698804,802.88,802.11,1.6747942]
[1754860723183,0.21698804,802.88,802.1,1.6747942]
[1754860723486,0.21698804,802.88,801.99,1.6747942]
[1754860723681,0.21698804,802.88,802.0,1.6747942]
[1754860724287,0.21698804,802.88,801.99,1.6747942]
[1754860724484,0.21698804,802.88,802.0,1.6747942]
[1754860725288,0.21698804,802.88,801.99,1.6747942]
[1754860725483,0.21698804,802.88,802.0,1.6747942]
[1754860726286,0.21698804,802.88,801.99,1.6747942]
[1754860726485,0.21698804,802.88,802.0,1.6747942]
[1754860729691,0.21698804,802.88,802.02,1.6747942]
[1754860730489,0.21698804,802.88,802.03,1.6747942]
[1754860731190,0.21698804,802.88,802.11,1.6747942]
[1754860731390,0.21698804,802.88,802.12,1.6747942]
[1754860732389,0.21698804,802.88,802.13,1.6747942]
[1754860733089,0.21698804,802.88,802.12,1.6747942]
[1754860733494,0.21698804,802.88,802.23,1.6747942]
[1754860733992,0.21698804,802.88,802.24,1.6747942]
[1754860736394,0.21698804,802.88,802.25,1.6747942]
[1754860737197,0.21698804,802.88,802.26,1.6747942]
[1754860741308,0.21698804,802.88,802.27,1.6747942]
[1754860742611,0.21698804,802.88,801.73,2.8023031]
[1754860742612,0.21698804,802.88,802.26,1.6747942]
[1754860742909,0.21698804,802.88,802.18,1.6747942]
[1754860743309,0.21698804,802.88,802.17,1.6747942]
[1754860744909,0.21698804,802.88,802.13,1.6747942]
[1754860745108,0.21698804,802.88,802.08,1.6747942]
[1754860745310,0.21698804,802.88,802.09,1.6747942]
[1754860746712,0.21698804,802.88,802.1,1.6747942]
[1754860747016,0.21698804,802.88,802.09,1.6747942]
[1754860747514,0.21698804,802.88,802.1,1.6747942]
[1754860748518,0.21698804,802.88,802.11,1.6747942]
[1754860749518,0.21698804,802.88,802.12,1.6747942]
[1754860749716,0.21698804,802.88,802.09,1.6747942]
[1754860749916,0.21698804,802.88,802.11,1.6747942]
[1754860750416,0.21698804,802.88,801.41,2.8023031]
[1754860750417,0.21698804,802.88,802.12,1.6747942]
[1754860750822,0.21698804,802.88,802.09,1.6747942]
[1754860751623,0.21698804,802.88,802.04,1.6747942]
[1754860751821,0.21698804,802.88,802.08,1.6747942]
[1754860752322,0.21698804,802.88,802.09,1.6747942]
[1754860752921,0.21698804,802.88,802.12,1.6747942]
[1754860753223,0.21698804,802.88,802.16,1.6747942]
[1754860753425,0.21698804,802.88,802.17,1.6747942]
[1754860753721,0.83588005,803.4,802.17,1.6747942]
[1754860754124,0.83588005,803.41,802.18,1.6747942]
[1754860754322,0.83588005,803.4,802.19,1.6747942]
[1754860756226,0.83588005,803.39,802.19,1.6747942]
[1754860756426,0.83588005,803.39,802.2,1.6747942]
[1754860758429,0.83588005,803.38,802.21,1.6747942]
[1754860759431,0.83588005,803.37,802.22,1.6747942]
[1754860760530,1.60751193,803.36,802.23,1.6747942]
[1754860760727,0.83588005,803.34,802.2,1.6747942]
[1754860760932,0.77163188,803.33,802.23,1.6747942]
[1754860761127,0.77163188,803.32,802.23,1.6747942]
[1754860761432,0.77163188,803.31,802.23,1.6747942]
[1754860761633,0.83588005,803.31,802.33,1.6747942]
[1754860761931,0.83588005,803.29,802.31,1.6747942]
[1754860762831,0.83588005,803.26,802.37,1.6747942]
[1754860763129,0.77163188,803.25,802.3,1.6747942]
[1754860763428,0.83588005,803.16,802.17,1.6747942]
[1754860765432,0.77163188,803.15,802.04,1.6747942]
[1754860765629,0.77163188,803.14,802.05,1.6747942]
[1754860765830,0.77163188,803.13,802.05,1.6747942]
[1754860766032,0.77163188,803.12,802.05,1.6747942]
[1754860766228,0.77163188,803.11,802.05,1.6747942]
[1754860766430,0.77163188,803.1,802.05,1.6747942]
[1754860766630,0.77163188,803.09,802.05,1.6747942]
[1754860766830,0.77163188,803.08,802.05,1.6747942]
[1754860767132,0.77163188,803.07,802.05,1.6747942]
[1754860767332,0.77163188,803.06,802.05,1.6747942]
[1754860767627,0.77163188,803.05,802.05,1.6747942]
[1754860767830,0.77163188,803.04,802.05,1.6747942]
[1754860768029,0.77163188,803.03,802.05,1.6747942]
[1754860768230,0.77163188,803.02,802.05,1.6747942]
[1754860768430,0.77163188,803.01,802.05,1.6747942]
[1754860768635,0.77163188,803.0,802.05,1.6747942]
[1754860768834,0.77163188,802.99,802.05,1.6747942]
[1754860769131,0.77163188,802.98,802.05,1.6747942]
[1754860769333,0.77163188,802.97,802.05,1.6747942]
[1754860769633,0.77163188,802.96,802.05,1.6747942]
[1754860769833,0.77163188,802.95,802.05,1.6747942]
[1754860770030,0.77163188,802.94,802.05,1.6747942]
[1754860770231,0.77163188,802.93,802.05,1.6747942]
[1754860770431,0.77163188,802.93,801.26,2.8023031]
[1754860770432,0.77163188,802.92,802.06,1.6747942]
[1754860770630,0.77163188,802.91,802.06,1.6747942]
[1754860770929,0.77163188,802.9,802.06,1.6747942]
[1754860771133,0.83588005,803.26,802.06,1.6747942]
[1754860771334,0.83588005,803.25,802.06,1.6747942]
[1754860772534,0.83588005,803.25,801.27,2.8023031]
[1754860772535,0.83588005,803.25,802.07,1.6747942]
[1754860772932,0.83588005,803.23,802.1,1.6747942]
[1754860773133,1.60816834,803.23,802.1,1.6747942]
[1754860773428,2.7800712,804.4,801.35,2.8023031]
[1754860773429,0.77228829,803.22,802.23,1.6747942]
[1754860773633,0.77228829,803.21,802.23,1.6747942]
[1754860773828,0.77228829,803.2,802.23,1.6747942]
[1754860774131,0.77228829,803.19,802.23,1.6747942]
[1754860774330,0.77228829,803.18,802.23,1.6747942]
[1754860774530,0.77228829,803.17,802.23,1.6747942]
[1754860774729,0.77228829,803.16,802.23,1.6747942]
[1754860774930,0.77228829,803.15,802.23,1.6747942]
[1754860775135,0.77228829,803.14,802.23,1.6747942]
[1754860775435,0.77228829,803.13,802.42,1.6747942]
[1754860775633,0.77228829,803.12,802.42,1.6747942]
[1754860775836,0.77228829,803.11,802.42,1.6747942]
[1754860776132,0.83588005,803.24,802.42,1.6747942]
[1754860776133,0.77228829,803.1,802.42,1.6747942]
[1754860776332,0.77228829,803.09,802.42,1.6747942]
[1754860776536,0.77228829,803.08,802.43,1.6747942]
[1754860776737,0.77228829,803.07,802.43,1.6747942]
[1754860777034,0.77228829,803.06,802.43,1.6747942]
[1754860777334,0.77228829,803.05,802.43,1.6747942]
[1754860777536,0.77228829,803.04,802.44,1.6747942]
[1754860777734,0.77228829,803.03,802.44,1.6747942]
[1754860777932,0.77228829,803.02,802.44,1.6747942]
[1754860778237,0.77228829,803.01,802.44,1.6747942]
[1754860778431,0.77228829,803.0,802.45,1.6747942]
[1754860778632,0.83588005,803.23,802.47,1.6747942]
[1754860779637,0.77331122,803.22,802.25,1.6747942]
[1754860779932,0.77331122,803.21,802.3,1.6747942]
[1754860780133,0.77331122,803.2,802.29,1.6747942]
[1754860780332,0.77331122,803.19,802.29,1.6747942]
[1754860780533,0.77331122,803.18,802.3,1.6747942]
[1754860780735,0.77331122,803.17,802.3,1.6747942]
[1754860780935,0.77331122,803.16,802.3,1.6747942]
[1754860781237,0.77331122,803.15,802.36,1.6747942]
[1754860781437,0.77331122,803.14,802.36,1.6747942]
[1754860781636,0.83588005,803.47,802.36,1.6747942]
[1754860781637,0.77331122,803.13,802.36,1.6747942]
[1754860781933,0.77331122,803.12,802.36,1.6747942]
[1754860782134,0.77331122,803.11,802.36,1.6747942]
[1754860782333,0.83588005,803.48,802.35,1.6747942]
[1754860782532,0.77345148,803.47,802.35,1.6747942]
[1754860782731,0.77345148,803.46,802.35,1.6747942]
[1754860782932,0.77345148,803.45,802.35,1.6747942]
[1754860783136,0.77345148,803.44,802.35,1.6747942]
[1754860783336,0.77345148,803.43,802.33,1.6747942]
[1754860783537,0.77345148,803.42,802.33,1.6747942]
[1754860783734,0.77345148,803.41,802.33,1.6747942]
[1754860784037,0.77345148,803.4,802.33,1.6747942]
[1754860784337,0.77345148,803.39,802.32,1.6747942]
[1754860784537,0.83588005,803.48,802.32,1.6747942]
[1754860784538,0.77345148,803.38,802.32,1.6747942]
[1754860784737,0.77345148,803.37,802.32,1.6747942]
[1754860784941,0.77345148,803.36,802.32,1.6747942]
[1754860785136,0.77345148,803.35,802.47,1.6747942]
[1754860785436,0.77345148,803.34,802.46,1.6747942]
[1754860785741,0.77345148,803.33,802.46,1.6747942]
[1754860786040,0.77345148,803.32,802.46,1.6747942]
[1754860786340,0.77345148,803.31,802.46,1.6747942]
[1754860786634,0.77345148,803.3,802.46,1.6747942]
[1754860786835,0.77345148,803.29,802.46,1.6747942]
[1754860787035,0.77345148,803.28,802.46,1.6747942]
[1754860787234,0.77345148,803.27,802.46,1.6747942]
[1754860787433,0.77345148,803.26,802.47,1.6747942]
[1754860787635,0.77345148,803.25,802.46,1.6747942]
[1754860787833,0.77345148,803.24,802.46,1.6747942]
[1754860788035,0.77345148,803.23,802.47,1.6747942]
[1754860788335,0.77345148,803.22,802.46,1.6747942]
[1754860788534,0.77345148,803.21,802.46,1.6747942]
[1754860788743,0.83588005,803.53,802.44,1.6747942]
[1754860789236,0.83588005,803.54,802.43,1.6747942]
[1754860789636,0.83588005,803.52,802.46,1.6747942]
[1754860789840,1.60868628,803.52,802.46,1.6747942]
[1754860790138,1.60868628,803.51,802.48,1.6747942]
[1754860790340,1.60868628,803.51,801.77,2.8023031]
[1754860790341,0.77280623,803.5,802.47,1.6747942]
[1754860790537,0.77280623,803.49,802.47,1.6747942]
[1754860790737,0.77280623,803.48,802.47,1.6747942]
[1754860790936,0.77280623,803.47,802.47,1.6747942]
[1754860791136,0.77280623,803.46,802.47,1.6747942]
[1754860791336,0.77280623,803.45,802.49,1.6747942]
[1754860791537,0.77280623,803.44,802.49,1.6747942]
[1754860791740,0.77280623,803.43,802.49,1.6747942]
[1754860792037,0.77280623,803.42,802.49,1.6747942]
[1754860792238,0.77280623,803.41,802.48,1.6747942]
[1754860792434,0.77280623,803.4,802.48,1.6747942]
[1754860792634,0.77280623,803.39,802.47,1.6747942]
[1754860792838,0.77280623,803.38,802.47,1.6747942]
[1754860793037,0.77280623,803.37,802.47,1.6747942]
[1754860793241,0.77280623,803.36,802.47,1.6747942]
[1754860793439,0.77280623,803.35,802.46,1.6747942]
[1754860793637,0.77280623,803.34,802.46,1.6747942]
[1754860793840,0.77280623,803.33,802.46,1.6747942]
[1754860794037,0.77280623,803.32,802.46,1.6747942]
[1754860794241,0.77280623,803.31,802.46,1.6747942]
[1754860794440,0.77280623,803.3,802.46,1.6747942]
[1754860794643,0.77280623,803.29,802.46,1.6747942]
[1754860794845,0.77280623,803.28,802.45,1.6747942]
[1754860795046,0.77280623,803.27,802.45,1.6747942]
[1754860795247,0.83588005,803.61,802.48,1.6747942]
[1754860796643,0.77173897,803.6,802.48,1.6747942]
[1754860796942,0.77173897,803.59,802.48,1.6747942]
[1754860797146,0.77173897,803.58,802.48,1.6747942]
[1754860797448,0.77173897,803.57,802.49,1.6747942]
[1754860797747,0.77173897,803.56,802.51,1.6747942]
[1754860798044,0.77173897,803.55,802.51,1.6747942]
[1754860798247,0.77173897,803.54,802.5,1.6747942]
[1754860798448,0.77173897,803.53,802.5,1.6747942]
[1754860798650,0.77173897,803.52,802.54,1.6747942]
[1754860798849,0.77173897,803.51,802.54,1.6747942]
[1754860799046,0.77173897,803.5,802.54,1.6747942]
[1754860799245,0.77173897,803.49,802.54,1.6747942]
[1754860799448,0.77173897,803.48,802.54,1.6747942]
[1754860799750,0.77173897,803.47,802.54,1.6747942]
[1754860800053,0.77173897,803.46,802.55,1.6747942]
[1754860800254,0.77173897,803.45,802.55,1.6747942]
[1754860800450,0.77173897,803.44,802.55,1.6747942]
[1754860800653,0.77173897,803.43,802.55,1.6747942]
[1754860800954,0.77173897,803.42,802.55,1.6747942]
[1754860801159,0.77173897,803.41,802.55,1.6747942]
[1754860801454,0.77173897,803.4,802.54,1.6747942]
[1754860801653,0.77173897,803.39,802.55,1.6747942]
[1754860801851,0.77173897,803.38,802.55,1.6747942]
[1754860802053,0.77173897,803.37,802.55,1.6747942]
[1754860802254,0.77173897,803.36,802.55,1.6747942]
[1754860802452,0.77173897,803.35,802.54,1.6747942]
[1754860802656,0.83588005,803.58,802.56,1.6747942]
[1754860803154,0.83588005,803.58,802.57,1.6747942]
[1754860803355,0.83588005,803.58,802.55,1.6747942]
[1754860804057,0.77100022,803.57,802.47,1.6747942]
[1754860804254,0.77100022,803.56,802.46,1.6747942]
[1754860804456,0.77100022,803.55,802.46,1.6747942]
[1754860804653,0.77100022,803.54,802.46,1.6747942]
[1754860804853,0.77100022,803.53,802.46,1.6747942]
[1754860805055,0.77100022,803.52,802.48,1.6747942]
[1754860805258,0.77100022,803.51,802.48,1.6747942]
[1754860805557,0.77100022,803.5,802.48,1.6747942]
[1754860805752,0.77100022,803.49,802.48,1.6747942]
[1754860806058,0.77100022,803.48,802.48,1.6747942]
[1754860806262,0.77100022,803.47,802.48,1.6747942]
[1754860806557,0.77100022,803.46,802.48,1.6747942]
[1754860806760,0.77100022,803.45,802.48,1.6747942]
[1754860806958,0.77100022,803.44,802.48,1.6747942]
[1754860807258,0.77100022,803.43,802.47,1.6747942]
[1754860807457,0.77100022,803.42,802.32,1.6747942]
[1754860807657,0.77100022,803.41,802.32,1.6747942]
[1754860807858,0.77100022,803.4,802.32,1.6747942]
[1754860808058,0.77100022,803.39,802.32,1.6747942]
[1754860808259,0.77100022,803.38,802.32,1.6747942]
[1754860808461,0.77100022,803.37,802.32,1.6747942]
[1754860808661,0.77100022,803.36,802.32,1.6747942]
[1754860808859,0.77100022,803.35,802.32,1.6747942]
[1754860809064,0.77100022,803.34,802.32,1.6747942]
[1754860809263,0.77100022,803.33,802.33,1.6747942]
[1754860809462,0.77100022,803.32,802.32,1.6747942]
[1754860809659,0.77100022,803.31,802.3,1.6747942]
[1754860809960,0.77100022,803.3,802.3,1.6747942]
[1754860810159,0.77100022,803.29,802.3,1.6747942]
[1754860810360,0.83588005,803.64,802.3,1.6747942]
[1754860811362,0.83588005,803.64,801.12,3.9232243]
[1754860811363,0.83588005,803.64,802.31,1.6747942]
[1754860813268,0.83588005,803.64,802.21,1.6747942]
[1754860813464,0.83588005,803.54,802.21,1.6747942]
[1754860813874,1.60668957,803.53,802.23,1.6747942]
[1754860814071,0.77080952,803.52,802.23,1.6747942]
[1754860814375,0.77080952,803.51,802.23,1.6747942]
[1754860814569,0.77080952,803.5,802.23,1.6747942]
[1754860814776,0.77080952,803.49,802.23,1.6747942]
[1754860814971,0.77080952,803.48,802.23,1.6747942]
[1754860815174,0.77080952,803.47,802.23,1.6747942]
[1754860815372,0.77080952,803.46,802.24,1.6747942]
[1754860815573,0.77080952,803.45,802.24,1.6747942]
[1754860815777,0.77080952,803.44,802.24,1.6747942]
[1754860816072,0.77080952,803.43,802.24,1.6747942]
[1754860816371,0.77080952,803.42,802.24,1.6747942]
[1754860816670,0.77080952,803.41,802.24,1.6747942]
[1754860816873,0.77080952,803.4,802.24,1.6747942]
[1754860817077,0.77080952,803.39,802.24,1.6747942]
[1754860817372,0.77080952,803.38,802.42,1.6747942]
[1754860817574,0.77080952,803.37,802.42,1.6747942]
[1754860817779,0.77080952,803.36,802.42,1.6747942]
[1754860818078,0.77080952,803.35,802.42,1.6747942]
[1754860818278,0.77080952,803.34,802.42,1.6747942]
[1754860818574,1.1120284,803.56,802.42,1.6747942]
[1754860818874,0.83660517,803.43,802.43,1.6747942]
[1754860819073,0.771041,803.42,802.43,1.6747942]
[1754860819273,1.60764617,803.42,802.43,1.6747942]
[1754860819473,0.771041,803.41,802.43,1.6747942]
[1754860819674,0.771041,803.4,802.43,1.6747942]
[1754860819974,0.771041,803.39,802.43,1.6747942]
[1754860820181,0.771041,803.38,802.43,1.6747942]
[1754860820378,0.771041,803.37,802.43,1.6747942]
[1754860820674,0.771041,803.36,802.43,1.6747942]
[1754860820877,0.771041,803.36,801.91,2.8023031]
[1754860820878,0.771041,803.35,802.44,1.6747942]
[1754860821072,0.771041,803.34,802.45,1.6747942]
[1754860821274,0.771041,803.33,802.45,1.6747942]
[1754860821474,0.771041,803.32,802.45,1.6747942]